bitfinex-derivatives/quotes_ETHF0:USTF0_20230104
["timestamp","ask_amount","ask_price","bid_price","bid_amount"]
[1672812305575,8.20508523,1248.2,1248.1,1.20062992]
[1672812305786,8.20508523,1248.2,1248.1,3.00282314]
[1672812306625,4.6063,1248.2,1248.1,1.80219322]
[1672812308418,4.6063,1248.2,1248.1,3.00408175]
[1672812308627,8.20508523,1248.2,1248.1,3.00408175]
[1672812309672,5.19778523,1248.2,1248.1,3.00408175]
[1672812309996,8.20508523,1248.2,1248.1,3.00408175]
[1672812311362,5.19778523,1248.2,1248.1,3.00408175]
[1672812311572,8.20508523,1248.2,1248.1,3.00408175]
[1672812311780,5.19778523,1248.2,1248.1,3.00408175]
[1672812311982,8.20508523,1248.2,1248.1,3.00408175]
[1672812314513,4.6063,1248.2,1248.1,3.00408175]
[1672812314924,8.20508523,1248.2,1248.1,3.00408175]
[1672812315886,4.6063,1248.2,1248.1,3.00408175]
[1672812317245,8.20508523,1248.2,1248.1,3.00408175]
[1672812319028,4.6063,1248.2,1248.1,3.00408175]
[1672812319234,4.6063,1248.2,1248.1,1.20188853]
[1672812319452,8.20508523,1248.2,1248.1,1.20188853]
[1672812319775,8.20508523,1248.2,1248.1,3.00408175]
[1672812321352,5.19778523,1248.2,1248.1,3.00408175]
[1672812321777,8.20508523,1248.2,1248.1,3.00408175]
[1672812324296,8.20508523,1248.2,1248.1,1.20188853]
[1672812325868,8.20508523,1248.2,1248.0,4.60308175]
[1672812326290,12.403668,1248.2,1248.0,4.60308175]
[1672812326499,9.396368,1248.2,1248.0,4.60308175]
[1672812326698,3.0073,1248.1,1248.0,4.60308175]
[1672812327335,6.60608523,1248.1,1248.0,2.80088853]
[1672812328178,3.0073,1248.1,1248.0,2.80088853]
[1672812328385,6.60608523,1248.1,1248.0,2.80088853]
[1672812329857,6.60608523,1248.1,1248.0,1.599]
[1672812330283,8.20408523,1248.1,1247.9,4.59108175]
[1672812330496,2.99510919,1248.0,1247.9,4.59108175]
[1672812332069,2.99510919,1248.0,1247.9,2.78888853]
[1672812332710,6.00240919,1248.0,1247.9,3.78888853]
[1672812333027,8.39795867,1248.0,1247.9,4.38919322]
[1672812333336,2.99510919,1248.0,1247.9,4.38919322]
[1672812333547,2.39532088,1248.0,1247.9,4.38919322]
[1672812333956,2.39532088,1248.0,1247.9,4.98972054]
[1672812335859,2.39532088,1248.0,1247.9,6.7906181]
[1672812336070,2.39532088,1248.0,1247.9,4.98972054]
[1672812337857,2.39532088,1248.0,1247.9,6.79065275]
[1672812338061,2.39532088,1248.0,1247.9,4.98972054]
[1672812338380,2.39532088,1248.0,1247.9,6.79072439]
[1672812340280,2.39532088,1248.0,1247.9,6.41008953]
[1672812342054,2.39532088,1248.0,1247.9,4.98972054]
[1672812343735,2.39532088,1248.0,1247.9,6.79084976]
[1672812343941,2.39532088,1248.0,1247.9,4.98972054]
[1672812345317,2.39532088,1248.0,1247.9,6.41008319]
[1672812346582,2.39532088,1248.0,1247.9,9.4108099]
[1672812347000,2.39532088,1248.0,1247.9,6.41008319]
[1672812347737,2.39532088,1248.0,1247.9,5.41008319]
[1672812348049,5.39043007,1248.0,1247.9,6.79094676]
[1672812348259,5.39043007,1248.0,1247.9,6.79114705]
[1672812348463,2.39532088,1248.0,1247.9,4.98972054]
[1672812348995,5.39043007,1248.0,1247.9,6.79114896]
[1672812349200,2.39532088,1248.0,1247.9,4.98972054]
[1672812349512,5.39043007,1248.0,1247.9,6.79114874]
[1672812352357,2.39532088,1248.0,1247.9,4.98972054]
[1672812352675,5.39043007,1248.0,1247.9,5.79124517]
[1672812353726,2.39532088,1248.0,1247.9,3.98972054]
[1672812353927,5.39043007,1248.0,1247.9,3.98972054]
[1672812355088,2.99510919,1248.0,1247.9,3.38864414]
[1672812355508,5.39124757,1248.0,1247.9,5.78558734]
[1672812355721,5.39124757,1248.0,1247.9,6.78558734]
[1672812355925,5.39112335,1248.0,1247.9,6.78558734]
[1672812356979,5.39112335,1248.0,1247.9,5.78558734]
[1672812357606,2.99510919,1248.0,1247.9,5.78558734]
[1672812357811,2.99510919,1248.0,1247.9,6.78558734]
[1672812358229,5.39144909,1248.0,1247.9,4.9839432]
[1672812358443,2.99510919,1248.0,1247.9,4.9839432]
[1672812358875,2.99510919,1248.0,1247.9,3.9839432]
[1672812359076,2.99510919,1248.0,1247.9,5.78581457]
[1672812360028,2.99510919,1248.0,1247.9,6.7859095]
[1672812361289,2.99510919,1248.0,1247.9,4.9839432]
[1672812362029,2.99510919,1248.0,1247.9,6.7860237]
[1672812362339,2.99510919,1248.0,1247.9,5.7860237]
[1672812362759,2.99510919,1248.0,1247.9,6.7860237]
[1672812364235,2.99510919,1248.0,1247.9,5.7860237]
[1672812365183,2.99510919,1248.0,1247.9,6.7860237]
[1672812366021,2.99510919,1248.0,1247.9,5.7860237]
[1672812366231,2.99510919,1248.0,1247.9,6.7860237]
[1672812366444,2.99510919,1248.0,1247.9,4.9839432]
[1672812367183,2.99510919,1248.0,1247.9,6.78615777]
[1672812367385,2.99510919,1248.0,1247.9,6.78615771]
[1672812367601,3.189,1248.0,1247.9,3.00384171]
[1672812367801,6.78778523,1248.0,1247.8,3.00384171]
[1672812368018,6.2003,1247.9,1247.8,1.20155709]
[1672812368543,9.2003,1247.9,1247.8,1.20155709]
[1672812371512,9.2003,1247.9,1247.7,1.20155709]
[1672812371763,4.58930182,1247.8,1247.6,8.00384171]
[1672812372038,6.98454042,1247.7,1247.6,1.20155709]
[1672812372227,9.97484224,1247.7,1247.6,1.20155709]
[1672812373406,7.58260182,1247.7,1247.6,1.20155709]
[1672812373823,6.98286298,1247.7,1247.5,7.59584171]
[1672812374634,6.98286298,1247.7,1247.5,4.59584171]
[1672812374867,6.98286298,1247.7,1247.5,7.59584171]
[1672812375713,6.98286298,1247.7,1247.5,4.59584171]
[1672812375940,6.98286298,1247.7,1247.5,2.79355709]
[1672812376463,9.9731648,1247.7,1247.5,2.79355709]
[1672812377804,6.98286298,1247.7,1247.5,2.79355709]
[1672812378759,6.979537,1247.7,1247.6,3.0]
[1672812379072,6.979537,1247.7,1247.5,3.29355709]
[1672812379502,6.979537,1247.7,1247.5,2.092]
[1672812380582,6.979537,1247.7,1247.5,3.29355709]
[1672812381180,6.98286298,1247.7,1247.5,3.29355709]
[1672812381710,14.98686298,1247.7,1247.5,1.592]
[1672812382535,14.98686298,1247.7,1247.4,11.09595156]
[1672812382536,15.00086298,1247.7,1247.4,12.69395156]
[1672812382749,15.00086298,1247.7,1247.5,3.0]
[1672812383064,11.99356298,1247.7,1247.5,3.0]
[1672812383282,3.0073,1247.6,1247.5,3.0]
[1672812383490,4.79773807,1247.6,1247.5,3.0]
[1672812384542,3.0073,1247.6,1247.5,3.0]
[1672812385069,3.0073,1247.6,1247.4,14.49623618]
[1672812385264,3.0073,1247.6,1247.5,3.0]
[1672812387373,16.79130105,1247.7,1247.5,3.0]
[1672812388842,14.40073807,1247.7,1247.5,4.20155709]
[1672812389477,14.40073807,1247.7,1247.5,1.20155709]
[1672812389690,1.79043807,1247.6,1247.4,12.69395156]
[1672812390413,16.79130105,1247.7,1247.5,3.0]
[1672812390619,14.40073807,1247.7,1247.5,3.0]
[1672812390834,14.40073807,1247.7,1247.5,4.20155709]
[1672812391362,1.79043807,1247.6,1247.5,3.0]
[1672812391781,16.79130105,1247.7,1247.5,3.0]
[1672812392197,1.79043807,1247.6,1247.5,3.0]
[1672812392625,3.38943807,1247.6,1247.5,3.0]
[1672812393780,1.599,1247.6,1247.5,3.0]
[1672812393993,3.38943807,1247.6,1247.5,3.0]
[1672812395783,3.38943807,1247.6,1247.5,4.20155709]
[1672812399385,3.38943807,1247.6,1247.5,1.20155709]
[1672812400846,3.38943807,1247.6,1247.5,4.20155709]
[1672812401374,3.38943807,1247.6,1247.5,1.20155709]
[1672812401579,3.38943807,1247.6,1247.5,4.20155709]
[1672812402853,3.38943807,1247.6,1247.5,1.20155709]
[1672812403058,3.38943807,1247.6,1247.5,4.20155709]
[1672812403270,3.38943807,1247.6,1247.5,1.20155709]
[1672812403804,3.98956298,1247.6,1247.5,3.00384171]
[1672812404116,3.98956298,1247.6,1247.5,1.20155709]
[1672812405035,6.9798648,1247.6,1247.5,1.20155709]
[1672812405680,7.59660182,1247.6,1247.5,1.20155709]
[1672812407664,7.59660182,1247.6,1247.5,3.00384171]
[1672812407880,7.59660182,1247.6,1247.5,4.80228462]
[1672812408502,7.59660182,1247.6,1247.5,1.80228462]
[1672812409545,7.59660182,1247.6,1247.5,4.80228462]
[1672812409754,7.59660182,1247.6,1247.5,7.20500516]
[1672812410173,7.59660182,1247.6,1247.5,4.20500516]
[1672812410591,4.58930182,1247.6,1247.5,4.20500516]
[1672812411024,4.58930182,1247.6,1247.5,1.80228462]
[1672812411753,7.59660182,1247.6,1247.5,4.20500516]
[1672812412069,4.58930182,1247.6,1247.5,4.20500516]
[1672812412279,7.59660182,1247.6,1247.5,4.20500516]
[1672812412492,7.59660182,1247.6,1247.5,7.20500516]
[1672812412703,4.58930182,1247.6,1247.5,5.40272054]
[1672812412908,4.19435711,1247.6,1247.5,13.62682005]
[1672812413121,1.79767722,1247.6,1247.5,10.62609334]
[1672812413950,4.19435711,1247.7,1247.5,10.62609334]
[1672812414166,4.19435711,1247.7,1247.6,11.0220825]
[1672812414372,4.19435711,1247.7,1247.6,11.5220825]
[1672812414904,4.19435711,1247.7,1247.6,13.1210825]
[1672812415112,1.79767722,1247.7,1247.6,13.1210825]
[1672812415843,4.19435711,1247.8,1247.6,13.1210825]
[1672812416058,4.19435711,1247.8,1247.7,3.99216842]
[1672812416903,2.39667989,1247.8,1247.7,6.99946842]
[1672812417222,4.19282962,1247.8,1247.7,6.99946842]
[1672812417744,4.19282962,1247.8,1247.7,8.79959113]
[1672812419645,1.79614973,1247.8,1247.7,6.39842271]
[1672812422463,1.79614973,1247.8,1247.7,3.39112271]
[1672812422677,1.79614973,1247.8,1247.7,5.79229113]
[1672812423412,1.79614973,1247.8,1247.7,8.79959113]
[1672812424360,1.79614973,1247.8,1247.7,6.39842271]
[1672812425625,1.79614973,1247.8,1247.7,4.59024802]
[1672812427415,1.79614973,1247.8,1247.7,2.79012531]
[1672812429300,4.19282962,1247.8,1247.7,2.79012531]
[1672812429617,1.79614973,1247.8,1247.7,4.59024802]
[1672812429933,1.79614973,1247.8,1247.7,2.79012531]
[1672812433404,1.79614973,1247.8,1247.7,4.59024802]
[1672812435503,2.39667989,1247.8,1247.7,2.79012531]
[1672812437393,2.39667989,1247.8,1247.7,1.591]
[1672812438343,4.57630182,1247.8,1247.6,1.598]
[1672812438553,5.39851208,1247.7,1247.6,1.598]
[1672812439178,5.39851208,1247.7,1247.6,2.79712531]
[1672812443602,2.39121208,1247.7,1247.6,2.79712531]
[1672812443806,5.39851208,1247.7,1247.6,2.79712531]
[1672812444539,7.19254153,1247.7,1247.6,4.59724802]
[1672812445594,5.39851208,1247.7,1247.6,2.79712531]
[1672812445800,5.39851208,1247.7,1247.6,4.59724802]
[1672812446537,1.79452052,1247.7,1247.6,3.39812271]
[1672812447381,4.1857326,1247.7,1247.6,3.39812271]
[1672812447904,4.1857326,1247.7,1247.6,4.59818376]
[1672812448114,2.39121208,1247.7,1247.6,4.59818376]
[1672812448325,5.39851208,1247.7,1247.6,4.59818376]
[1672812448748,5.39851208,1247.7,1247.6,2.79806105]
[1672812448959,8.3888139,1247.7,1247.6,2.79806105]
[1672812449383,5.99760182,1247.7,1247.6,2.79806105]
[1672812450436,2.99030182,1247.7,1247.6,2.79806105]
[1672812450655,5.99760182,1247.7,1247.6,2.79806105]
[1672812450865,2.99030182,1247.7,1247.6,2.79806105]
[1672812451079,5.99760182,1247.7,1247.6,2.79806105]
[1672812452127,2.99030182,1247.7,1247.6,2.79806105]
[1672812452339,5.99760182,1247.7,1247.6,2.79806105]
[1672812452544,5.99760182,1247.7,1247.6,1.20006105]
[1672812452760,2.99030182,1247.7,1247.6,1.20006105]
[1672812453071,5.99760182,1247.7,1247.6,1.20006105]
[1672812456854,2.99030182,1247.7,1247.6,1.20006105]
[1672812457064,5.99760182,1247.7,1247.6,1.20006105]
[1672812458318,5.99760182,1247.7,1247.6,1.19245152]
[1672812462641,5.99760182,1247.7,1247.6,2.79145152]
[1672812463160,2.99030182,1247.7,1247.6,2.79145152]
[1672812463379,5.99760182,1247.7,1247.6,2.79145152]
[1672812463689,5.99760182,1247.7,1247.6,4.59157423]
[1672812464217,5.99760182,1247.7,1247.6,2.79145152]
[1672812464531,5.99760182,1247.7,1247.6,4.59157423]
[1672812464729,5.99760182,1247.7,1247.6,2.79145152]
[1672812465049,5.99760182,1247.7,1247.6,4.59157423]
[1672812465257,5.99760182,1247.7,1247.6,2.79145152]
[1672812465465,5.99760182,1247.7,1247.6,4.59157423]
[1672812470308,5.99760182,1247.7,1247.6,3.39912271]
[1672812470716,5.4026232,1247.7,1247.6,3.39912271]
[1672812471361,5.4026232,1247.7,1247.6,5.80029113]
[1672812472622,5.4026232,1247.7,1247.6,2.40116842]
[1672812473367,5.4026232,1247.7,1247.6,3.82189146]
[1672812473571,1.79744433,1247.7,1247.6,6.0150122]
[1672812473785,4.19276753,1247.7,1247.6,6.0150122]
[1672812473996,4.19276753,1247.7,1247.6,8.41761312]
[1672812474927,2.3953232,1247.7,1247.6,5.41432396]
[1672812477359,5.38562502,1247.7,1247.6,5.41432396]
[1672812484184,5.38562502,1247.7,1247.6,3.3933198]
[1672812484185,2.99030182,1247.7,1247.6,3.3933198]
[1672812484405,2.99030182,1247.7,1247.6,1.8023198]
[1672812487446,5.99760182,1247.7,1247.6,1.8023198]
[1672812491432,2.99030182,1247.7,1247.6,2.40260092]
[1672812491646,2.99030182,1247.7,1247.6,4.20500925]
[1672812492284,2.99030182,1247.7,1247.6,2.40260092]
[1672812492492,2.99030182,1247.7,1247.6,4.2050428]
[1672812494596,2.99030182,1247.7,1247.6,1.80244188]
[1672812495959,2.99030182,1247.7,1247.6,3.82335171]
[1672812496171,2.99030182,1247.7,1247.6,2.40260092]
[1672812496381,2.99030182,1247.7,1247.6,4.20510761]
[1672812496589,2.99030182,1247.7,1247.6,1.80250669]
[1672812497002,15.6103,1247.8,1247.6,1.80250669]
[1672812497214,19.20908523,1247.8,1247.6,1.80250669]
[1672812498268,2.99667259,1247.7,1247.6,1.80250669]
[1672812498480,19.20908523,1247.8,1247.6,1.80250669]
[1672812499111,3.0073,1247.7,1247.6,1.80250669]
[1672812499317,6.00391079,1247.7,1247.6,1.80250669]
[1672812499527,3.0073,1247.7,1247.6,1.80250669]
[1672812500690,6.00404051,1247.7,1247.6,1.80250669]
[1672812500888,6.00407014,1247.7,1247.6,1.80250669]
[1672812501103,6.00475794,1247.7,1247.6,1.80250669]
[1672812504056,2.99745794,1247.7,1247.6,1.80250669]
[1672812504253,6.00475794,1247.7,1247.6,1.80250669]
[1672812504790,2.99745794,1247.7,1247.6,1.80250669]
[1672812505102,6.00475794,1247.7,1247.6,1.80250669]
[1672812510262,6.00024803,1247.7,1247.6,1.80250669]
[1672812510688,3.0073,1247.7,1247.6,1.80250669]
[1672812511005,3.0073,1247.7,1247.5,6.40150669]
[1672812511006,11.0113,1247.7,1247.5,6.40150669]
[1672812511319,11.0113,1247.7,1247.5,7.60228916]
[1672812511632,11.0113,1247.7,1247.5,6.40151077]
[1672812515206,3.0073,1247.6,1247.5,3.40151077]
[1672812515416,4.5923,1247.6,1247.5,1.80251077]
[1672812516988,4.5923,1247.6,1247.5,4.80251077]
[1672812518671,4.5923,1247.6,1247.5,7.20511169]
[1672812518876,4.5923,1247.6,1247.5,4.80251077]
[1672812519828,4.5923,1247.6,1247.5,7.20511169]
[1672812522445,4.5923,1247.6,1247.5,4.80251077]
[1672812522867,1.585,1247.6,1247.5,4.80251077]
[1672812523494,1.585,1247.6,1247.5,7.20511169]
[1672812524136,1.585,1247.6,1247.5,7.20514545]
[1672812524345,1.585,1247.6,1247.5,7.20514549]
[1672812530338,4.58318322,1247.6,1247.5,7.20514549]
[1672812532542,2.99818322,1247.6,1247.5,7.20514549]
[1672812534848,2.99818322,1247.6,1247.5,5.40260092]
[1672812535481,2.99818322,1247.6,1247.5,7.20551765]
[1672812535695,2.99818322,1247.6,1247.5,4.20551765]
[1672812535903,2.99818322,1247.6,1247.5,2.40260092]
[1672812536742,2.99818322,1247.6,1247.5,5.40260092]
[1672812540733,2.99818322,1247.6,1247.5,6.8234746]
[1672812543371,2.99818322,1247.6,1247.5,8.4214746]
[1672812543675,2.39874343,1247.6,1247.5,11.42476376]
[1672812544092,2.39874343,1247.6,1247.5,9.02216284]
[1672812544515,2.39874343,1247.6,1247.5,12.02946284]
[1672812545567,2.39874343,1247.6,1247.5,14.43326215]
[1672812545990,2.39874343,1247.6,1247.5,11.42997299]
[1672812547769,5.39692665,1247.6,1247.5,11.42997299]
[1672812547980,2.39874343,1247.6,1247.5,11.42997299]
[1672812548402,5.39692665,1247.6,1247.5,11.42997299]
[1672812548933,2.39874343,1247.6,1247.5,11.42997299]
[1672812549458,2.39874343,1247.6,1247.5,12.02946284]
[1672812551456,2.39874343,1247.6,1247.5,14.43281257]
[1672812553766,2.39874343,1247.6,1247.5,11.42952341]
[1672812554812,2.39874343,1247.6,1247.5,8.42222341]
[1672812557862,2.39874343,1247.6,1247.5,11.42551257]
[1672812559127,4.19691374,1247.6,1247.5,9.02216284]
[1672812559555,1.79817031,1247.6,1247.5,9.02216284]
[1672812559758,2.39874343,1247.6,1247.5,8.42215186]
[1672812563442,2.39874343,1247.6,1247.5,11.42544102]
[1672812567755,2.39874343,1247.6,1247.5,9.02216284]
[1672812567965,2.39874343,1247.6,1247.5,11.42552905]
[1672812568910,2.39874343,1247.6,1247.5,9.02216284]
[1672812569324,2.39874343,1247.6,1247.5,11.42554637]
[1672812569744,2.39874343,1247.6,1247.5,8.42225721]
[1672812570062,2.39874343,1247.6,1247.5,11.42554637]
[1672812570588,2.39874343,1247.6,1247.5,9.02216284]
[1672812573011,2.39874343,1247.6,1247.5,11.42570769]
[1672812577854,2.39874343,1247.6,1247.5,9.02216284]
[1672812581630,4.19807647,1247.6,1247.5,9.02216284]
[1672812581839,1.79933304,1247.6,1247.5,6.01887368]
[1672812582056,2.39874343,1247.6,1247.5,9.02452353]
[1672812582267,4.19808415,1247.6,1247.5,9.02452353]
[1672812582470,2.39874343,1247.6,1247.5,9.02452353]
[1672812583944,4.19796668,1247.6,1247.5,9.02452353]
[1672812586990,2.39874343,1247.6,1247.5,9.02452353]
[1672812588359,4.19760143,1247.6,1247.5,9.02452353]
[1672812588886,2.39874343,1247.6,1247.5,9.02452353]
[1672812594350,2.39323905,1247.6,1247.5,9.02452353]
[1672812594567,2.39323905,1247.6,1247.5,11.4287279]
[1672812598551,2.39323905,1247.6,1247.5,9.02452353]
[1672812600438,2.39323905,1247.6,1247.5,9.01906216]
[1672812601066,5.39142227,1247.6,1247.5,8.41767152]
[1672812601283,5.39142227,1247.6,1247.5,11.42332137]
[1672812601693,5.39142227,1247.6,1247.5,8.41767152]
[1672812602221,5.39142227,1247.6,1247.5,11.42332137]
[1672812603278,5.39142227,1247.6,1247.5,8.41767152]
[1672812603489,5.39142227,1247.6,1247.5,11.42332137]
[1672812605062,5.39142227,1247.6,1247.5,8.41767152]
[1672812605490,5.39142227,1247.6,1247.5,11.42332137]
[1672812605698,5.39142227,1247.6,1247.5,8.41767152]
[1672812606224,5.39142227,1247.6,1247.5,11.42332137]
[1672812606434,2.39323905,1247.6,1247.5,11.42332137]
[1672812606645,5.39142227,1247.6,1247.5,8.41767152]
[1672812606955,5.39142227,1247.6,1247.5,11.42332137]
[1672812607164,2.39323905,1247.6,1247.5,11.42332137]
[1672812614837,2.39323905,1247.6,1247.5,9.01906216]
[1672812615997,4.19183446,1247.6,1247.5,9.01906216]
[1672812617679,2.39323905,1247.6,1247.5,9.01906216]
[1672812635550,5.39142227,1247.6,1247.5,11.42344333]
[1672812636706,2.99818322,1247.6,1247.5,8.41779348]
[1672812637757,2.99818322,1247.6,1247.5,5.42325485]
[1672812638486,5.3965634,1247.6,1247.5,11.4289047]
[1672812639018,2.39838018,1247.6,1247.5,9.8309047]
[1672812639327,5.3965634,1247.6,1247.5,9.8309047]
[1672812641324,5.3965634,1247.6,1247.5,6.82525485]
[1672812641325,2.99818322,1247.6,1247.5,6.82525485]
[1672812641748,5.39646797,1247.6,1247.5,6.82525485]
[1672812641957,2.99818322,1247.6,1247.5,6.82525485]
[1672812642596,5.3971499,1247.6,1247.5,6.82525485]
[1672812645014,2.39896668,1247.6,1247.5,7.42652353]
[1672812649637,2.39896668,1247.6,1247.5,9.83084166]
[1672812650161,5.3971499,1247.6,1247.5,6.83084166]
[1672812651947,5.3971499,1247.6,1247.5,9.83084166]
[1672812653100,2.39896668,1247.6,1247.5,9.83084166]
[1672812653316,5.3971499,1247.6,1247.5,6.83084166]
[1672812654066,5.3971499,1247.6,1247.5,8.42184166]
[1672812655637,5.3971499,1247.6,1247.5,11.42184166]
[1672812655852,5.3971499,1247.6,1247.5,8.42184166]
[1672812660783,4.5923,1247.7,1247.5,3.39449826]
[1672812661003,2.99859214,1247.6,1247.5,5.79885408]
[1672812661414,2.9975146,1247.6,1247.5,5.79885408]
[1672812661625,8.19108523,1247.7,1247.5,3.39453595]
[1672812661838,8.19108523,1247.7,1247.6,1.20237231]
[1672812662047,8.19108523,1247.7,1247.6,4.20237231]
[1672812662257,8.19108523,1247.7,1247.6,1.20237231]
[1672812662681,9.79008523,1247.7,1247.6,1.20237231]
[1672812663939,17.79408523,1247.7,1247.6,1.20237231]
[1672812664472,21.98881298,1247.7,1247.5,1.20237231]
[1672812664689,1.585,1247.6,1247.5,1.20237231]
[1672812665203,13.18393021,1247.6,1247.5,1.20237231]
[1672812665413,9.589,1247.6,1247.5,1.20237231]
[1672812671203,12.58192461,1247.6,1247.5,1.20237231]
[1672812671933,15.58922461,1247.6,1247.5,1.20237231]
[1672812674251,15.58922461,1247.6,1247.5,3.00590826]
[1672812675835,12.58192461,1247.6,1247.5,3.00590826]
[1672812676144,4.57792461,1247.6,1247.5,3.00590826]
[1672812676347,6.9717755,1247.6,1247.5,1.80353595]
[1672812676767,4.57792461,1247.6,1247.5,3.00448508]
[1672812677199,6.97173792,1247.6,1247.5,3.00448508]
[1672812677615,4.57792461,1247.6,1247.5,3.00448508]
[1672812679614,4.57792461,1247.6,1247.5,1.20094913]
[1672812680877,7.58522461,1247.6,1247.5,1.20094913]
[1672812682451,7.58522461,1247.6,1247.5,3.00448508]
[1672812682864,4.57792461,1247.6,1247.5,3.00448508]
[1672812683077,7.58522461,1247.6,1247.5,3.00448508]
[1672812689175,6.98595455,1247.6,1247.5,1.80353595]
[1672812689383,3.99302994,1247.6,1247.5,1.80353595]
[1672812689910,3.99302994,1247.6,1247.5,4.20785408]
[1672812690331,3.99302994,1247.6,1247.5,1.80353595]
[1672812690541,3.99302994,1247.6,1247.5,4.20785408]
[1672812691280,4.59192461,1247.6,1247.5,1.80353595]
[1672812691591,4.59192461,1247.6,1247.5,3.00479767]
[1672812691804,4.59192461,1247.6,1247.5,1.80353595]
[1672812692957,2.99292461,1247.6,1247.5,10.50153595]
[1672812693278,1.79596932,1247.6,1247.5,16.13168113]
[1672812694324,1.79596932,1247.6,1247.5,18.53372941]
[1672812694842,1.79596932,1247.6,1247.5,16.13168113]
[1672812695059,4.19059509,1247.6,1247.5,12.52094833]
[1672812695479,2.39462577,1247.6,1247.5,12.52094833]
[1672812695689,4.19038015,1247.6,1247.5,12.52094833]
[1672812696125,1.79575438,1247.6,1247.5,12.52094833]
[1672812696321,4.19038015,1247.6,1247.5,12.52094833]
[1672812696638,1.79575438,1247.6,1247.5,12.52094833]
[1672812696849,4.19038015,1247.6,1247.5,12.52094833]
[1672812697052,1.79575438,1247.6,1247.5,15.52659818]
[1672812697581,1.79575438,1247.6,1247.5,12.52094833]
[1672812697901,1.79575438,1247.6,1247.5,15.52659818]
[1672812698215,1.79575438,1247.6,1247.5,12.52094833]
[1672812699265,1.79575438,1247.6,1247.5,15.52659818]
[1672812700108,1.79575438,1247.6,1247.5,18.53389818]
[1672812700423,1.79575438,1247.6,1247.5,18.53350194]
[1672812701998,1.79575438,1247.6,1247.5,16.13168113]
[1672812702206,1.79170209,1247.6,1247.5,16.13168113]
[1672812702624,1.79170209,1247.6,1247.5,18.53270633]
[1672812702944,1.79170209,1247.6,1247.5,15.52705648]
[1672812709251,1.79170209,1247.6,1247.5,12.51975648]
[1672812709570,1.79170209,1247.6,1247.5,12.89964177]
[1672812709882,2.39462577,1247.6,1247.5,10.49861657]
[1672812710615,2.39462577,1247.6,1247.5,7.39964177]
[1672812710831,2.39462577,1247.6,1247.5,4.99861657]
[1672812711667,2.39462577,1247.6,1247.5,7.39964177]
[1672812712302,2.39462577,1247.6,1247.5,4.99861657]
[1672812714293,2.39462577,1247.6,1247.5,7.39964177]
[1672812715656,2.39462577,1247.6,1247.5,4.99861657]
[1672812716296,2.39462577,1247.6,1247.5,7.39964177]
[1672812716498,2.39462577,1247.6,1247.5,4.99861657]
[1672812720290,2.39462577,1247.6,1247.5,7.39964177]
[1672812724387,2.39462577,1247.6,1247.5,5.5990252]
[1672812724812,2.39462577,1247.6,1247.5,7.40087015]
[1672812725226,2.39462577,1247.6,1247.5,5.5990252]
[1672812726493,2.39462577,1247.6,1247.5,7.01983889]
[1672812727543,2.39462577,1247.6,1247.5,7.01984559]
[1672812728173,2.39462577,1247.6,1247.5,7.01595315]
[1672812729744,2.39462577,1247.6,1247.5,10.021603]
[1672812732370,2.39462577,1247.6,1247.5,7.6205778]
[1672812732587,2.39462577,1247.6,1247.5,6.02547024]
[1672812733104,2.39462577,1247.6,1247.5,8.42878223]
[1672812733735,2.39462577,1247.6,1247.5,6.02547024]
[1672812734157,2.39462577,1247.6,1247.5,8.42877601]
[1672812735215,2.39462577,1247.6,1247.5,6.02547024]
[1672812735848,2.39462577,1247.6,1247.5,8.42883357]
[1672812736158,2.39462577,1247.6,1247.5,6.02547024]
[1672812739424,2.39462577,1247.6,1247.5,5.42323766]
[1672812740792,2.39462577,1247.6,1247.5,8.42888751]
[1672812742148,3.0073,1247.8,1247.7,1.1814]
[1672812742149,0.96493021,1247.8,1247.7,1.1814]
[1672812742364,9.57155827,1248.2,1247.7,9.3674]
[1672812742565,11.97456099,1248.3,1248.0,3.0037494]
[1672812742776,9.37327822,1248.4,1248.0,8.0037494]
[1672812742995,3.0,1248.3,1248.2,3.0]
[1672812743619,3.0,1248.3,1248.1,4.20149976]
[1672812743935,3.0,1248.3,1248.1,4.597]
[1672812744153,3.0,1248.3,1248.1,5.79849976]
[1672812744563,3.0,1248.3,1248.1,4.597]
[1672812745931,6.0073,1248.3,1248.1,4.597]
[1672812746876,3.0,1248.3,1248.1,4.597]
[1672812747195,6.0073,1248.3,1248.1,4.597]
[1672812747408,3.0,1248.3,1248.1,4.597]
[1672812747621,6.0073,1248.3,1248.1,4.597]
[1672812748550,3.0,1248.3,1248.1,4.597]
[1672812748771,6.0073,1248.3,1248.1,4.597]
[1672812748977,6.0073,1248.3,1248.1,1.597]
[1672812750347,3.0073,1248.2,1248.1,1.597]
[1672812755914,3.0073,1248.2,1247.8,21.4164]
[1672812755915,6.2013,1248.2,1247.8,21.4164]
[1672812756126,4.5933,1248.0,1247.8,20.233]
[1672812756339,4.5933,1248.0,1247.8,6.597]
[1672812756753,4.5933,1248.0,1247.8,1.597]
[1672812762650,7.5779319,1248.0,1247.8,1.597]
[1672812768527,4.5706319,1248.0,1247.8,1.597]
[1672812768733,3.0073,1247.9,1247.8,1.597]
[1672812772299,5.3967802,1247.9,1247.8,1.597]
[1672812772510,5.3967802,1247.9,1247.7,5.80049976]
[1672812772723,5.3967802,1247.9,1247.7,2.80049976]
[1672812773155,5.3967802,1247.9,1247.7,5.80049976]
[1672812774109,5.3967802,1247.9,1247.7,2.80049976]
[1672812777463,2.3894802,1247.9,1247.7,2.80049976]
[1672812777674,5.3967802,1247.9,1247.7,5.80049976]
[1672812778733,2.3894802,1247.9,1247.7,5.80049976]
[1672812778943,5.3967802,1247.9,1247.7,5.80049976]
[1672812780202,5.3967802,1247.9,1247.7,2.80049976]
[1672812780411,2.3894802,1247.8,1247.7,2.80049976]
[1672812781674,8.3814121,1247.9,1247.7,2.80049976]
[1672812782512,2.3894802,1247.8,1247.7,2.80049976]
[1672812786412,2.3894802,1247.8,1247.7,4.6027494]
[1672812790614,2.3894802,1247.8,1247.7,3.40124964]
[1672812791028,6.9691121,1247.8,1247.7,3.00289301]
[1672812791347,1.595,1247.8,1247.7,1.20064337]
[1672812791554,1.595,1247.8,1247.6,1.20064337]
[1672812791868,9.00040722,1247.7,1247.6,1.20064337]
[1672812794397,9.00040722,1247.7,1247.6,3.00289301]
[1672812795015,5.99310722,1247.7,1247.6,3.00289301]
[1672812795537,9.00040722,1247.7,1247.6,1.20064337]
[1672812795756,6.00040722,1247.7,1247.6,3.00289301]
[1672812795966,8.39533102,1247.7,1247.6,1.80224964]
[1672812796397,5.38803102,1247.7,1247.6,1.80224964]
[1672812797233,5.38803102,1247.7,1247.6,3.00301032]
[1672812798709,2.99310722,1247.7,1247.6,3.00301032]
[1672812799764,5.38779401,1247.7,1247.6,3.00301032]
[1672812800505,5.38786778,1247.7,1247.6,3.00301032]
[1672812800819,5.38785607,1247.7,1247.6,3.00301032]
[1672812801340,5.38785607,1247.7,1247.6,1.80224964]